fUSD/lending_fUSD_20241107
["ID","MTS","AMOUNT","RATE_DAILY","PERIOD"]
[341579480,1731006671067,-896.88,0.00028764,2]
[341579481,1731006671076,-500.0,0.00028764,2]
[341579482,1731006671086,-961.1,0.00028764,2]
[341579483,1731006671095,-500.0,0.00028764,2]
[341579484,1731006671104,-1463.27,0.00028764,2]
[341579485,1731006671113,-3143.16,0.00028764,2]
[341579486,1731006671123,-500.0,0.00028764,2]
[341579487,1731006671133,-500.0,0.00028764,2]
[341579488,1731006671143,-726.47,0.00028764,2]
[341579489,1731006671153,-500.0,0.00028764,2]
[341579490,1731006671162,-500.0,0.00028764,2]
[341579491,1731006671172,-4690.82,0.00028764,2]
[341579492,1731006671181,-550.48,0.00028764,2]
[341579493,1731006671191,-500.0,0.00028764,2]
[341579494,1731006671201,-2121.04,0.00028764,2]
[341579495,1731006671210,-500.0,0.00028764,2]
[341579496,1731006671219,-2520.06,0.00028764,2]
[341579497,1731006671228,-500.0,0.00028764,2]
[341579498,1731006671238,-500.0,0.00028764,2]
[341579499,1731006671247,-1085.49,0.00028764,2]
[341579500,1731006671256,-880.83,0.00028764,2]
[341579501,1731006671265,-408.391294,0.00028764,7]
[341579502,1731006671275,-500.0,0.00028764,2]
[341579503,1731006671285,-500.0,0.00028764,2]
[341579504,1731006671296,-408.391294,0.00028764,7]
[341579505,1731006671305,-500.0,0.00028764,2]
[341579506,1731006671316,-943.13,0.00028764,2]
[341579507,1731006671326,-500.0,0.00028764,2]
[341579508,1731006671335,-960.56,0.00028764,2]
[341579509,1731006671344,-775.37,0.00028764,2]
[341579510,1731006671354,-500.0,0.00028764,2]
[341579511,1731006671363,-1421.51,0.00028764,2]
[341579512,1731006671372,-500.0,0.00028764,2]
[341579513,1731006671381,-500.0,0.00028764,2]
[341579514,1731006671391,-500.0,0.00028764,2]
[341579515,1731006671400,-500.0,0.00028764,2]
[341579516,1731006671410,-1153.57,0.00028764,2]
[341579517,1731006671419,-151.0,0.00028764,7]
[341579518,1731006671429,-500.0,0.00028764,2]
[341579519,1731006671439,-858.2509,0.00028764,7]
[341579520,1731006671449,-500.0,0.00028764,2]
[341579521,1731006671458,-604.83,0.00028764,2]
[341579522,1731006671467,-569.26,0.00028764,2]
[341579523,1731006671477,-500.0,0.00028764,2]
[341579524,1731006671486,-858.2509,0.00028764,7]
[341579525,1731006671495,-500.0,0.00028764,2]
[341579526,1731006671505,-500.0,0.00028764,2]
[341579527,1731006671514,-500.0,0.00028764,2]
[341579528,1731006671524,-500.0,0.00028764,2]
[341579529,1731006671533,-645.83,0.00028764,2]
[341579530,1731006671550,-500.0,0.00028764,2]
[341579531,1731006671559,-779.11,0.00028764,2]
[341579532,1731006671571,-500.0,0.00028764,2]
[341579533,1731006671580,-599.12,0.00028764,2]
[341579534,1731006671590,-500.0,0.00028764,2]
[341579535,1731006671599,-500.0,0.00028764,2]
[341579536,1731006671609,-177.626265,0.00028764,7]
[341579537,1731006671619,-1042.79,0.00028764,2]
[341579538,1731006671628,-151.0,0.00028764,7]
[341579539,1731006671639,-177.626265,0.00028764,7]
[341579540,1731006671649,-500.0,0.00028764,2]
[341579541,1731006671658,-815.39,0.00028764,2]
[341579542,1731006671668,-500.0,0.00028764,2]
[341579543,1731006671677,-500.0,0.00028764,2]
[341579544,1731006671687,-152.390842,0.00028764,7]
[341579545,1731006671696,-540.00431,0.00028764,7]
[341579546,1731006671706,-1276.42,0.00028764,2]
[341579547,1731006671717,-1160.45,0.00028764,2]
[341579548,1731006671726,-500.0,0.00028764,2]
[341579549,1731006671736,-500.0,0.00028764,2]
[341579550,1731006671745,-540.00431,0.00028764,7]
[341579551,1731006671754,-991.95,0.00028764,2]
[341579552,1731006671765,-500.0,0.00028764,2]
[341579553,1731006671775,-500.0,0.00028764,2]
[341579554,1731006671784,-500.0,0.00028764,2]
[341579555,1731006671796,-500.0,0.00028764,2]
[341579556,1731006671806,-536.82397411,0.00028764,2]
[341579557,1731006671815,-2096.29,0.00028764,2]
[341579558,1731006671824,-466.04699584,0.00028764,2]
[341579559,1731006671834,-1112.02,0.00028764,2]
[341579560,1731006671843,-546.77,0.00028764,2]
[341579561,1731006672154,-151.0,0.00028764,7]
[341579562,1731006672171,-235.977363,0.00028764,7]
[341579563,1731006672181,-235.977363,0.00028764,7]
[341579564,1731006672190,-507.01,0.00028764,2]
[341579565,1731006672199,-500.0,0.00028764,2]
[341579566,1731006672209,-500.0,0.00028764,2]
[341579567,1731006672218,-1440.6,0.00028764,2]
[341579568,1731006672227,-1299.27,0.00028764,2]
[341579569,1731006672236,-634.36,0.00028764,2]
[341579570,1731006672245,-1237.47,0.00028764,2]
[341579571,1731006672254,-500.0,0.00028764,2]
[341579572,1731006672264,-1400.48,0.00028764,2]
[341579573,1731006672273,-880.63,0.00028764,2]
[341579574,1731006672282,-1189.25,0.00028764,2]
[341579575,1731006672294,-151.0,0.00028764,7]
[341579576,1731006672303,-500.0,0.00028764,2]
[341579577,1731006672313,-151.0,0.00028764,7]
[341579578,1731006672322,-500.0,0.00028764,2]
[341579579,1731006672331,-963.961596,0.00028764,7]
[341579580,1731006672340,-963.961596,0.00028764,7]
[341579581,1731006672350,-500.0,0.00028764,2]
[341579582,1731006672359,-740.28,0.00028764,2]
[341579583,1731006672367,-500.0,0.00028764,2]
[341579584,1731006672377,-500.0,0.00028764,2]
[341579585,1731006672386,-151.0,0.00028764,7]
[341579586,1731006672395,-165.51486,0.00028764,7]
[341579587,1731006672405,-165.51486,0.00028764,7]
[341579588,1731006672414,-151.0,0.00028764,7]
[341579589,1731006672423,-500.0,0.00028764,2]
[341579590,1731006672433,-438.93949289,0.00028764,2]
[341579591,1731006672442,-860.23,0.00028764,2]
[341579592,1731006672452,-538.507583,0.00028764,7]
[341579593,1731006672461,-538.507583,0.00028764,7]
[341579594,1731006672470,-500.0,0.00028764,2]
[341579595,1731006672480,-268.68557738,0.00028764,2]
[341579596,1731006672489,-500.0,0.00028764,2]
[341579597,1731006672499,-733.25,0.00028764,2]
[341579598,1731006672509,-2079.61,0.00028764,2]
[341579599,1731006672519,-500.0,0.00028764,2]
[341579600,1731006672528,-500.0,0.00028764,2]
[341579601,1731006672538,-1402.17,0.00028764,2]
[341579602,1731006672548,-919.14,0.00028764,2]
[341579603,1731006672557,-564.55,0.00028764,2]
[341579604,1731006672569,-500.0,0.00028764,2]
[341579605,1731006672578,-500.0,0.00028764,2]
[341579606,1731006672588,-500.0,0.00028764,2]
[341579607,1731006672597,-500.0,0.00028764,2]
[341579608,1731006672607,-500.0,0.00028764,2]
[341579609,1731006672618,-500.0,0.00028764,2]
[341579610,1731006672629,-1687.74,0.00028764,2]
[341579611,1731006672639,-151.0,0.00028764,7]
[341579612,1731006672649,-500.0,0.00028764,2]
[341579613,1731006672658,-869.33,0.00028764,2]
[341579614,1731006672667,-151.0,0.00028764,7]
[341579615,1731006672677,-6466.8,0.00028764,2]
[341579616,1731006672687,-500.0,0.00028764,2]
[341579617,1731006672696,-500.0,0.00028764,2]
[341579618,1731006672706,-500.0,0.00028764,2]
[341579619,1731006672716,-775.1,0.00028764,2]
[341579620,1731006672726,-1751.76,0.00028764,2]
[341579621,1731006672735,-805.76,0.00028764,2]
[341579622,1731006672744,-717.44,0.00028764,2]
[341579623,1731006672754,-500.0,0.00028764,2]
[341579624,1731006672763,-719.7,0.00028764,2]
[341579625,1731006672772,-151.0,0.00028765,7]
[341579626,1731006672782,-151.0,0.00028765,7]
[341579627,1731006672794,-279.952967,0.00028765,7]
[341579628,1731006672803,-279.952967,0.00028765,7]
[341579629,1731006672812,-634.28,0.00028765,2]
[341579630,1731006672822,-500.0,0.00028765,2]
[341579631,1731006672831,-500.0,0.00028765,2]
[341579632,1731006672841,-619.42,0.00028765,2]
[341579633,1731006672851,-500.0,0.00028765,2]
[341579634,1731006672861,-500.0,0.00028765,2]
[341579635,1731006672871,-500.0,0.00028765,2]
[341579636,1731006672881,-500.0,0.00028765,2]
[341579637,1731006672891,-500.0,0.00028765,2]
[341579638,1731006672901,-500.0,0.00028765,2]
[341579639,1731006672910,-500.0,0.00028765,2]
[341579640,1731006672920,-500.0,0.00028765,2]
[341579641,1731006672929,-500.0,0.00028765,2]
[341579642,1731006672938,-666.11,0.00028765,2]
[341579643,1731006672947,-500.0,0.00028765,2]
[341579644,1731006672956,-500.0,0.00028765,2]
[341579645,1731006672966,-500.0,0.00028765,2]
[341579646,1731006672975,-500.0,0.00028765,2]
[341579647,1731006672984,-500.0,0.00028765,2]
[341579648,1731006672994,-500.0,0.00028765,2]
[341579649,1731006673004,-593.20643115,0.00028765,2]
[341579650,1731006673013,-500.0,0.00028765,2]
[341579651,1731006673022,-500.0,0.00028765,2]
[341579652,1731006673031,-500.0,0.00028765,2]
[341579653,1731006673045,-684.31,0.00028765,2]
[341579654,1731006673055,-683.37,0.00028765,2]
[341579655,1731006673064,-1140.84,0.00028765,2]
[341579656,1731006673074,-500.0,0.00028765,2]
[341579657,1731006673084,-500.0,0.00028765,2]
[341579658,1731006673093,-500.0,0.00028765,2]
[341579659,1731006673102,-500.0,0.00028765,2]
[341579660,1731006673112,-500.0,0.00028765,2]
[341579661,1731006673122,-594.1,0.00028765,2]
[341579662,1731006673132,-774.5,0.00028765,2]
[341579663,1731006673142,-500.0,0.00028765,2]
[341579664,1731006673151,-500.0,0.00028765,2]
[341579665,1731006673162,-500.0,0.00028765,2]
[341579666,1731006673171,-568.18,0.00028765,2]
[341579667,1731006673181,-514.39,0.00028765,2]
[341579668,1731006673190,-500.0,0.00028765,2]
[341579669,1731006673199,-500.0,0.00028765,2]
[341579670,1731006673209,-500.0,0.00028765,2]
[341579671,1731006673219,-500.0,0.00028765,2]
[341579672,1731006673229,-500.0,0.00028765,2]
[341579673,1731006673239,-1732.62,0.00028765,2]
[341579674,1731006673249,-500.0,0.00028765,2]
[341579675,1731006673258,-1366.43,0.00028765,2]
[341579676,1731006673268,-500.0,0.00028765,2]
[341579677,1731006673277,-500.0,0.00028765,2]
[341579678,1731006673287,-500.0,0.00028765,2]
[341579679,1731006673297,-625.64,0.00028765,2]
[341579680,1731006673307,-500.0,0.00028765,2]
[341579681,1731006673317,-737.26,0.00028765,2]
[341579682,1731006673326,-255.936207,0.00028765,7]
[341579683,1731006673336,-151.0,0.00028765,7]
[341579684,1731006673345,-255.936207,0.00028765,7]
[341579685,1731006673356,-589.04,0.00028765,2]
[341579686,1731006673365,-500.0,0.00028765,2]
[341579687,1731006673374,-500.0,0.00028765,2]
[341579688,1731006673384,-500.0,0.00028765,2]
[341579689,1731006673395,-151.0,0.00028765,7]
[341579690,1731006673406,-198.299841,0.00028765,7]
[341579691,1731006673415,-151.0,0.00028765,7]
[341579692,1731006673424,-198.299841,0.00028765,7]
[341579693,1731006673432,-500.0,0.00028765,2]
[341579694,1731006673442,-500.0,0.00028765,2]
[341579695,1731006673451,-500.0,0.00028765,2]
[341579696,1731006673460,-500.0,0.00028765,2]
[341579697,1731006673469,-151.0,0.00028765,7]
[341579698,1731006673478,-151.0,0.00028765,7]
[341579699,1731006673487,-768.44,0.00028765,2]
[341579700,1731006673497,-500.0,0.00028765,2]
[341579701,1731006673506,-388.68197041,0.00028765,2]
[341579702,1731006673515,-500.0,0.00028765,2]
[341579703,1731006673525,-500.0,0.00028765,2]
[341579704,1731006673534,-500.0,0.00028765,2]
[341579705,1731006673548,-914.32,0.00028765,2]
[341579706,1731006673557,-547.53,0.00028765,2]
[341579707,1731006673569,-500.0,0.00028765,2]
[341579708,1731006673579,-151.0,0.00028765,7]
[341579709,1731006673589,-500.0,0.00028765,2]
[341579710,1731006673598,-496.246228,0.00028765,7]
[341579711,1731006673608,-496.246228,0.00028765,7]
[341579712,1731006673618,-190.612709,0.00028765,7]
[341579713,1731006673628,-190.612709,0.00028765,7]
[341579714,1731006673637,-4252.172922,0.00028765,7]
[341579715,1731006673648,-151.0,0.00028765,7]
[341579716,1731006673657,-151.0,0.00028765,7]
[341579717,1731006673666,-151.0,0.00028765,7]
[341579718,1731006673675,-150.0,0.00028767,2]
[341579719,1731006673685,-701.4,0.00028767,2]
[341579720,1731006673694,-154.97,0.00028775,2]
[341579721,1731006673704,-150.0,0.00028779,2]
[341579722,1731006673715,-355.99444352,0.00028796,2]
[341579723,1731006673724,-1152.02,0.00028797,2]
[341579724,1731006673734,-500.0,0.00028799,2]
[341579725,1731006673743,-500.0,0.000288,7]
[341579726,1731006673753,-500.0,0.000288,7]
[341579727,1731006673763,-500.0,0.000288,7]
[341579728,1731006673772,-500.0,0.000288,7]
[341579729,1731006673781,-500.0,0.000288,7]
[341579730,1731006673793,-500.0,0.000288,7]
[341579731,1731006673802,-500.0,0.000288,7]
[341579732,1731006673811,-500.0,0.000288,7]
[341579733,1731006673820,-500.0,0.000288,7]
[341579734,1731006673830,-500.0,0.000288,7]
[341579735,1731006673839,-242.57353427,0.000288,7]
[341579736,1731006673849,-2200.0,0.000288,10]
[341579737,1731006673858,-198.473013,0.00028817,7]
[341579738,1731006673867,-198.473013,0.00028817,7]
[341579739,1731006673876,-500.0,0.00028818,2]
[341579740,1731006673885,-151.0,0.00028819,7]
[341579741,1731006673895,-151.0,0.00028819,7]
[341579742,1731006673904,-232.356287,0.00028819,7]
[341579743,1731006673914,-232.356287,0.00028819,7]
[341579744,1731006673923,-151.0,0.00028819,7]
[341579745,1731006673932,-151.0,0.00028819,7]
[341579746,1731006673941,-500.0,0.00028819,2]
[341579747,1731006673950,-508.62890521,0.00028819,2]
[341579748,1731006673960,-500.0,0.00028819,2]
[341579749,1731006673969,-500.0,0.00028819,2]
[341579750,1731006673979,-752.59,0.00028819,2]
[341579751,1731006673988,-1964.6,0.00028819,2]
[341579752,1731006673997,-3277.23,0.00028819,2]
[341579753,1731006674007,-874.54,0.00028819,2]
[341579754,1731006674016,-500.0,0.00028819,2]
[341579755,1731006674026,-500.0,0.00028819,2]
[341579756,1731006674035,-500.0,0.00028819,2]
[341579757,1731006674047,-1066.81,0.00028819,2]
[341579758,1731006674057,-754.13,0.00028819,2]
[341579759,1731006674066,-500.0,0.00028819,2]
[341579760,1731006674075,-697.97,0.00028819,2]
[341579761,1731006674084,-743.72,0.00028819,2]
[341579762,1731006674094,-500.0,0.00028819,2]
[341579763,1731006674103,-500.0,0.00028819,2]
[341579764,1731006674112,-873.13,0.00028819,2]
[341579765,1731006674122,-1684.47,0.00028819,2]
[341579766,1731006674131,-1501.89,0.00028819,2]
[341579767,1731006674139,-1855.13,0.00028819,2]
[341579768,1731006674148,-1577.23,0.00028819,2]
[341579769,1731006674158,-500.0,0.00028819,2]
[341579770,1731006674167,-3441.125622,0.00028819,7]
[341579771,1731006674177,-1030.59,0.00028819,2]
[341579772,1731006674186,-3441.125622,0.00028819,7]
[341579773,1731006674195,-1130.13,0.00028819,2]
[341579774,1731006674205,-704.45,0.00028819,2]
[341579775,1731006674214,-920.53,0.00028819,2]
[341579776,1731006674223,-1276.51,0.00028819,2]
[341579777,1731006674233,-1518.09,0.00028819,2]
[341579778,1731006674242,-3010.52,0.00028819,2]
[341579779,1731006674251,-2199.01,0.00028819,2]
[341579780,1731006674261,-1048.53,0.00028819,2]
[341579781,1731006674270,-500.0,0.00028819,2]
[341579782,1731006674279,-1121.9,0.00028819,2]
[341579783,1731006674290,-500.0,0.00028819,2]
[341579784,1731006674299,-1772.55,0.00028819,2]
[341579785,1731006674309,-715.44,0.00028819,2]
[341579786,1731006674318,-722.96,0.00028819,2]
[341579787,1731006674327,-2326.17,0.00028819,2]
[341579788,1731006674336,-500.0,0.00028819,2]
[341579789,1731006674346,-500.0,0.00028819,2]
[341579790,1731006674355,-901.99,0.00028819,2]
[341579791,1731006674364,-500.0,0.00028819,2]
[341579792,1731006674373,-1466.36,0.00028819,2]
[341579793,1731006674383,-1292.34,0.00028819,2]
[341579794,1731006674392,-500.0,0.00028819,2]
[341579795,1731006674401,-825.64,0.00028819,2]
[341579796,1731006674410,-665.37,0.00028819,2]
[341579797,1731006674420,-1050.72,0.00028819,2]
[341579798,1731006674429,-301.59,0.00028826,2]
[341579799,1731006674439,-219.89,0.00028884,30]
[341579800,1731006674448,-2800.0,0.000289,10]
[341579801,1731006674458,-204.22353207,0.00028901,30]
[341579802,1731006674467,-189.72120919,0.00028938,2]
[341579803,1731006674553,-1144.73738128,0.00028938,2]
[341579804,1731006674564,-2000.0,0.00029,2]
[341579805,1731006674575,-2000.0,0.00029,2]
[341579806,1731006674584,-2000.0,0.00029,2]
[341579807,1731006674594,-2000.0,0.00029,2]
[341579808,1731006674604,-450.0,0.00029,2]
[341579809,1731006674614,-192.0,0.00029,13]
[341579810,1731006674624,-776.25940434,0.00029008,2]
[341579811,1731006674634,-169.76846182,0.00029008,2]
[341579812,1731006674645,-563.85950918,0.00029018,2]
[341579813,1731006674655,-500.0,0.00029036,2]
[341579814,1731006674667,-500.0,0.00029036,2]
[341579815,1731006674677,-6528.81,0.00029036,2]
[341579816,1731006674687,-504.3,0.00029036,2]
[341579817,1731006674696,-977.61,0.00029036,2]
[341579818,1731006674706,-13883.55,0.00029036,2]
[341579819,1731006674716,-500.0,0.00029036,2]
[341579820,1731006674727,-865.8,0.00029036,2]
[341579821,1731006674738,-1147.5,0.00029036,2]
[341579822,1731006674748,-500.0,0.00029036,2]
[341579823,1731006674757,-936.73,0.00029036,2]
[341579824,1731006674767,-2337.67,0.00029036,2]
[341579825,1731006674777,-2369.09,0.00029036,2]
[341579826,1731006674786,-500.0,0.00029036,2]
[341579827,1731006674801,-1548.35,0.00029036,2]
[341579828,1731006674811,-1962.15,0.00029036,2]
[341579829,1731006674821,-1445.99,0.00029036,2]
[341579830,1731006674830,-742.7,0.00029036,2]
[341579831,1731006674840,-970.12,0.00029036,2]
[341579832,1731006674850,-1161.63,0.00029036,2]
[341579833,1731006674859,-500.0,0.00029036,2]
[341579834,1731006674869,-638.35,0.00029036,2]
[341579835,1731006674878,-684.32,0.00029036,2]
[341579836,1731006674887,-500.0,0.00029036,2]
[341579837,1731006674897,-1478.55,0.00029036,2]
[341579838,1731006674906,-746.61,0.00029036,2]
[341579839,1731006674916,-2386.36,0.00029036,2]
[341579840,1731006674925,-1433.34,0.00029036,2]
[341579841,1731006674935,-499.49950094,0.00029036,2]
[341579842,1731006674944,-1278.94,0.00029036,2]
[341579843,1731006674954,-3042.63,0.00029036,2]
[341579844,1731006674963,-916.61,0.00029036,2]
[341579845,1731006674973,-4289.58,0.00029036,2]
[341579846,1731006674982,-500.0,0.00029036,2]
[341579847,1731006674991,-151.0,0.00029037,7]
[341579848,1731006675000,-151.0,0.00029037,7]
[341579849,1731006675009,-279.952967,0.00029037,7]
[341579850,1731006675019,-279.952967,0.00029037,7]
[341579851,1731006675028,-294.514144,0.00029037,2]
[341579852,1731006675036,-188.790643,0.00029037,2]
[341579853,1731006675048,-500.0,0.00029037,2]
[341579854,1731006675057,-2206.64,0.00029037,2]
[341579855,1731006675068,-732.22,0.00029037,2]
[341579856,1731006675077,-500.0,0.00029037,2]
[341579857,1731006675086,-1067.96,0.00029037,2]
[341579858,1731006675095,-500.0,0.00029037,2]
[341579859,1731006675105,-706.54,0.00029037,2]
[341579860,1731006675116,-500.0,0.00029037,2]
[341579861,1731006675125,-500.0,0.00029037,2]
[341579862,1731006675134,-500.0,0.00029037,2]
[341579863,1731006675143,-500.0,0.00029037,2]
[341579864,1731006675153,-500.0,0.00029037,2]
[341579865,1731006675161,-500.0,0.00029037,2]
[341579866,1731006675171,-500.0,0.00029037,2]
[341579867,1731006675179,-500.0,0.00029037,2]
[341579868,1731006675188,-984.03,0.00029037,2]
[341579869,1731006675198,-722.46,0.00029037,2]
[341579870,1731006675207,-285.35103661,0.00029037,2]
[341579871,1731006675216,-500.0,0.00029037,2]
[341579872,1731006675225,-642.45,0.00029037,2]
[341579873,1731006675235,-560.40230107,0.00029037,2]
[341579874,1731006675244,-500.0,0.00029037,2]
[341579875,1731006675254,-500.0,0.00029037,2]
[341579876,1731006675263,-500.0,0.00029037,2]
[341579877,1731006675273,-543.38,0.00029037,2]
[341579878,1731006675283,-500.0,0.00029037,2]
[341579879,1731006675295,-500.0,0.00029037,2]
[341579880,1731006675304,-500.0,0.00029037,2]
[341579881,1731006675313,-762.91,0.00029037,2]
[341579882,1731006675322,-887.87,0.00029037,2]
[341579883,1731006675332,-500.0,0.00029037,2]
[341579884,1731006675341,-500.0,0.00029037,2]
[341579885,1731006675350,-339.41422977,0.00029037,2]
[341579886,1731006675360,-660.78,0.00029037,2]
[341579887,1731006675369,-1160.67,0.00029037,2]
[341579888,1731006675379,-500.0,0.00029037,2]
[341579889,1731006675388,-522.94115769,0.00029037,2]
[341579890,1731006675397,-727.8,0.00029037,2]
[341579891,1731006675406,-500.0,0.00029037,2]
[341579892,1731006675415,-636.92,0.00029037,2]
[341579893,1731006675424,-1142.78,0.00029037,2]
[341579894,1731006675433,-741.01,0.00029037,2]
[341579895,1731006675443,-500.0,0.00029037,2]
[341579896,1731006675452,-500.0,0.00029037,2]
[341579897,1731006675461,-841.43,0.00029037,2]
[341579898,1731006675470,-554.02,0.00029037,2]
[341579899,1731006675480,-500.0,0.00029037,2]
[341579900,1731006675489,-500.0,0.00029037,2]
[341579901,1731006675499,-228.11570467,0.00029037,2]
[341579902,1731006675508,-500.0,0.00029037,2]
[341579903,1731006675517,-500.0,0.00029037,2]
[341579904,1731006675527,-730.85,0.00029037,2]
[341579905,1731006675536,-500.0,0.00029037,2]
[341579906,1731006675548,-500.0,0.00029037,2]
[341579907,1731006675558,-939.55,0.00029037,2]
[341579908,1731006675570,-500.0,0.00029037,2]
[341579909,1731006675579,-500.0,0.00029037,2]
[341579910,1731006675589,-500.0,0.00029037,2]
[341579911,1731006675598,-500.0,0.00029037,2]
[341579912,1731006675608,-500.0,0.00029037,2]
[341579913,1731006675617,-500.0,0.00029037,2]
[341579914,1731006675627,-500.0,0.00029037,2]
[341579915,1731006675636,-500.0,0.00029037,2]
[341579916,1731006675647,-535.45,0.00029037,2]
[341579917,1731006675658,-500.0,0.00029037,2]
[341579918,1731006675667,-500.0,0.00029037,2]
[341579919,1731006675676,-542.03,0.00029037,2]
[341579920,1731006675685,-500.0,0.00029037,2]
[341579921,1731006675695,-500.0,0.00029037,2]
[341579922,1731006675704,-1050.27,0.00029037,2]
[341579923,1731006675714,-500.0,0.00029037,2]
[341579924,1731006675724,-915.38,0.00029037,2]
[341579925,1731006675733,-500.0,0.00029037,2]
[341579926,1731006675743,-500.0,0.00029037,7]
[341579927,1731006675754,-500.0,0.00029037,2]
[341579928,1731006675764,-965.56,0.00029037,2]
[341579929,1731006675774,-500.0,0.00029037,2]
[341579930,1731006675783,-741.88,0.00029037,2]
[341579931,1731006675794,-500.0,0.00029037,2]
[341579932,1731006675803,-500.0,0.00029037,2]
[341579933,1731006675811,-500.0,0.00029037,2]
[341579934,1731006675820,-500.0,0.00029037,2]
[341579935,1731006675829,-500.0,0.00029037,2]
[341579936,1731006675839,-200.0,0.00029037,2]
[341579937,1731006675847,-626.37,0.00029037,2]
[341579938,1731006675856,-532.61,0.00029037,2]
[341579939,1731006675865,-500.0,0.00029037,2]
[341579940,1731006675874,-1130.55,0.00029037,2]
[341579941,1731006675883,-500.0,0.00029037,2]
[341579942,1731006675892,-500.0,0.00029037,2]
[341579943,1731006675901,-500.0,0.00029037,2]
[341579944,1731006675910,-500.0,0.00029037,2]
[341579945,1731006675919,-1059.89,0.00029037,2]
[341579946,1731006675928,-651.8,0.00029037,2]
[341579947,1731006675936,-543.6,0.00029037,2]
[341579948,1731006675944,-624.52,0.00029037,2]
[341579949,1731006675953,-500.0,0.00029037,2]
[341579950,1731006675962,-500.0,0.00029037,2]
[341579951,1731006675972,-500.0,0.00029037,2]
[341579952,1731006675983,-500.0,0.00029037,2]
[341579953,1731006675992,-542.47,0.00029037,2]
[341579954,1731006676001,-525.84,0.00029037,2]
[341579955,1731006676010,-619.61,0.00029037,2]
[341579956,1731006676019,-500.0,0.00029037,2]
[341579957,1731006676027,-613.59,0.00029037,2]
[341579958,1731006676036,-500.0,0.00029037,2]
[341579959,1731006676048,-500.0,0.00029037,2]
[341579960,1731006676057,-744.37,0.00029037,2]
[341579961,1731006676066,-500.0,0.00029037,2]
[341579962,1731006676074,-500.0,0.00029037,2]
[341579963,1731006676083,-500.0,0.00029037,2]
[341579964,1731006676091,-500.0,0.00029037,2]
[341579965,1731006676101,-500.0,0.00029037,2]
[341579966,1731006676112,-500.0,0.00029037,2]
[341579967,1731006676122,-591.5,0.00029037,2]
[341579968,1731006676131,-500.0,0.00029037,2]
[341579969,1731006676139,-772.8,0.00029037,2]
[341579970,1731006676147,-500.0,0.00029037,2]
[341579971,1731006676156,-720.36,0.00029037,2]
[341579972,1731006676165,-500.0,0.00029037,2]
[341579973,1731006676174,-500.0,0.00029037,2]
[341579974,1731006676183,-500.0,0.00029037,2]
[341579975,1731006676192,-500.0,0.00029037,2]
[341579976,1731006676201,-906.85,0.00029037,2]
[341579977,1731006676210,-500.0,0.00029037,2]
[341579978,1731006676219,-500.0,0.00029037,2]
[341579979,1731006676228,-500.0,0.00029037,2]